[Event "Late-Titled-Tuesday-Blitz-June-25-2024"]
[Site "Chess.com"]
[Date "2024.06.25"]
[Round "1"]
[White "Orest_Vovk"]
[Black "Kaslask"]
[Result "0-1"]
[WhiteElo "2568"]
[BlackElo "2237"]
[TimeControl "180+1"]
[EndTime "14:02:22 PDT"]
[Termination "Kaslask won by checkmate"]

1. h4 {[%clk 0:02:53.8]} 1... d5 {[%clk 0:02:57.6]} 2. h5 {[%clk 0:02:54]} 2...
e5 {[%clk 0:02:53.7]} 3. h6 {[%clk 0:02:54]} 3... Nxh6 {[%clk 0:02:52.3]} 4. d4
{[%clk 0:02:54.5]} 4... Nc6 {[%clk 0:02:44.3]} 5. Bxh6 {[%clk 0:02:54.9]} 5...
gxh6 {[%clk 0:02:44.3]} 6. dxe5 {[%clk 0:02:55.5]} 6... Nxe5 {[%clk 0:02:44.2]}
7. Nf3 {[%clk 0:02:55.8]} 7... Nxf3+ {[%clk 0:02:43.2]} 8. gxf3 {[%clk
0:02:56.1]} 8... Bg7 {[%clk 0:02:43.2]} 9. Nc3 {[%clk 0:02:55.5]} 9... c6 {[%clk
0:02:40.5]} 10. e4 {[%clk 0:02:52.4]} 10... dxe4 {[%clk 0:02:34.2]} 11. Qxd8+
{[%clk 0:02:51.6]} 11... Kxd8 {[%clk 0:02:34.1]} 12. O-O-O+ {[%clk 0:02:51.4]}
12... Kc7 {[%clk 0:02:32.3]} 13. Nxe4 {[%clk 0:02:49.6]} 13... Be6 {[%clk
0:02:31.1]} 14. Bh3 {[%clk 0:02:46.3]} 14... Bd5 {[%clk 0:02:27.9]} 15. Bf5
{[%clk 0:02:40.3]} 15... Rad8 {[%clk 0:02:26.2]} 16. Rdg1 {[%clk 0:02:38.9]}
16... Be5 {[%clk 0:02:25.4]} 17. Kb1 {[%clk 0:02:29]} 17... Bf4 {[%clk
0:02:16.9]} 18. Rg4 {[%clk 0:02:26.9]} 18... Bxe4 {[%clk 0:02:16.5]} 19. Rxf4
{[%clk 0:02:22.5]} 19... Bxf5 {[%clk 0:02:11.4]} 20. Rxf5 {[%clk 0:02:23.4]}
20... Rd7 {[%clk 0:02:10.4]} 21. Rxh6 {[%clk 0:02:23.4]} 21... Rd1# {[%clk
0:02:09.2]} 0-1

[Event "Late-Titled-Tuesday-Blitz-June-25-2024"]
[Site "Chess.com"]
[Date "2024.06.25"]
[Round "1"]
[White "anthonydrayton"]
[Black "Slovineanu"]
[Result "0-1"]
[WhiteElo "2103"]
[BlackElo "2550"]
[TimeControl "180+1"]
[EndTime "14:02:26 PDT"]
[Termination "Slovineanu won by checkmate"]

1. e4 {[%clk 0:02:56.7]} 1... c6 {[%clk 0:02:59.2]} 2. d4 {[%clk 0:02:53.5]}
2... d5 {[%clk 0:02:59.2]} 3. exd5 {[%clk 0:02:54.4]} 3... cxd5 {[%clk
0:02:59.2]} 4. c4 {[%clk 0:02:55.3]} 4... Nf6 {[%clk 0:02:58.6]} 5. Nc3 {[%clk
0:02:53.6]} 5... e6 {[%clk 0:02:58.8]} 6. Nf3 {[%clk 0:02:52.6]} 6... Bb4 {[%clk
0:02:58.8]} 7. Be2 {[%clk 0:02:52]} 7... dxc4 {[%clk 0:02:56]} 8. O-O {[%clk
0:02:50.6]} 8... O-O {[%clk 0:02:53.2]} 9. Bxc4 {[%clk 0:02:48.4]} 9... b6
{[%clk 0:02:49.9]} 10. Qb3 {[%clk 0:02:47.9]} 10... Bxc3 {[%clk 0:02:48.9]} 11.
bxc3 {[%clk 0:02:46.8]} 11... Bb7 {[%clk 0:02:48]} 12. Ne5 {[%clk 0:02:46.6]}
12... Nc6 {[%clk 0:02:44.4]} 13. Bg5 {[%clk 0:02:44.6]} 13... Na5 {[%clk
0:02:35.2]} 14. Qb4 {[%clk 0:02:41.9]} 14... Nxc4 {[%clk 0:02:30.8]} 15. Qxc4
{[%clk 0:02:35.3]} 15... Rc8 {[%clk 0:02:09.8]} 16. Qb3 {[%clk 0:02:18.4]} 16...
Qd5 {[%clk 0:02:06.4]} 17. Bxf6 {[%clk 0:02:15.9]} 17... Qxg2# {[%clk
0:02:04.6]} 0-1

[Event "Late-Titled-Tuesday-Blitz-June-25-2024"]
[Site "Chess.com"]
[Date "2024.06.25"]
[Round "1"]
[White "enriquebutti"]
[Black "Pedrada88"]
[Result "0-1"]
[WhiteElo "2182"]
[BlackElo "2562"]
[TimeControl "180+1"]
[EndTime "14:02:30 PDT"]
[Termination "Pedrada88 won by resignation"]

1. d4 {[%clk 0:03:00.2]} 1... d5 {[%clk 0:02:59.9]} 2. c4 {[%clk 0:02:59.6]}
2... e6 {[%clk 0:03:00.8]} 3. Nf3 {[%clk 0:02:57.4]} 3... Nf6 {[%clk 0:03:00.8]}
4. Nc3 {[%clk 0:02:56.4]} 4... a6 {[%clk 0:03:00.3]} 5. e3 {[%clk 0:02:51]} 5...
dxc4 {[%clk 0:03:00]} 6. Bxc4 {[%clk 0:02:49.9]} 6... b5 {[%clk 0:03:00.4]} 7.
Bd3 {[%clk 0:02:49]} 7... Bb7 {[%clk 0:03:00.7]} 8. O-O {[%clk 0:02:44]} 8...
Nbd7 {[%clk 0:03:01]} 9. e4 {[%clk 0:02:39.1]} 9... c5 {[%clk 0:03:01.1]} 10. d5
{[%clk 0:02:36.2]} 10... exd5 {[%clk 0:02:56.8]} 11. exd5 {[%clk 0:02:33.4]}
11... Bd6 {[%clk 0:02:56.5]} 12. Re1+ {[%clk 0:02:32.6]} 12... Kf8 {[%clk
0:02:56.7]} 13. Bg5 {[%clk 0:02:29.3]} 13... h6 {[%clk 0:02:52.8]} 14. Bh4
{[%clk 0:02:27.6]} 14... g5 {[%clk 0:02:47.7]} 15. Nxg5 {[%clk 0:02:10]} 15...
hxg5 {[%clk 0:02:46.9]} 16. Bxg5 {[%clk 0:02:09.4]} 16... Bxh2+ {[%clk
0:02:43.6]} 17. Kf1 {[%clk 0:02:08.9]} 17... Be5 {[%clk 0:02:42.9]} 18. Qf3
{[%clk 0:02:00.9]} 18... Qc7 {[%clk 0:02:26.8]} 0-1

[Event "Late-Titled-Tuesday-Blitz-June-25-2024"]
[Site "Chess.com"]
[Date "2024.06.25"]
[Round "1"]
[White "Murad_Ibrahimli"]
[Black "Romadk"]
[Result "1-0"]
[WhiteElo "2888"]
[BlackElo "2493"]
[TimeControl "180+1"]
[EndTime "14:02:34 PDT"]
[Termination "Murad_Ibrahimli won by resignation"]

1. c4 {[%clk 0:02:59.5]} 1... e5 {[%clk 0:02:58.9]} 2. Nc3 {[%clk 0:02:59.8]}
2... Nc6 {[%clk 0:02:59.2]} 3. g3 {[%clk 0:02:59.3]} 3... f5 {[%clk 0:02:58.3]}
4. Bg2 {[%clk 0:02:59.7]} 4... Nf6 {[%clk 0:02:58.6]} 5. e3 {[%clk 0:02:59.4]}
5... d6 {[%clk 0:02:59.1]} 6. Nge2 {[%clk 0:02:59.9]} 6... g6 {[%clk 0:02:59.7]}
7. d4 {[%clk 0:02:57.4]} 7... e4 {[%clk 0:03:00]} 8. O-O {[%clk 0:02:57.1]} 8...
Bg7 {[%clk 0:03:00.6]} 9. Rb1 {[%clk 0:02:55.4]} 9... O-O {[%clk 0:03:00.9]} 10.
b4 {[%clk 0:02:55.4]} 10... Qe8 {[%clk 0:03:00.4]} 11. b5 {[%clk 0:02:51.7]}
11... Nd8 {[%clk 0:03:00.6]} 12. a4 {[%clk 0:02:49.4]} 12... g5 {[%clk
0:02:59.9]} 13. f3 {[%clk 0:02:48.2]} 13... exf3 {[%clk 0:02:57.6]} 14. Bxf3
{[%clk 0:02:49.1]} 14... Ne6 {[%clk 0:02:50.6]} 15. Bg2 {[%clk 0:02:38.6]} 15...
Qh5 {[%clk 0:02:44.9]} 16. Nd5 {[%clk 0:02:29.9]} 16... Ng4 {[%clk 0:02:23.6]}
17. h3 {[%clk 0:02:28.4]} 17... Nf6 {[%clk 0:02:16]} 18. Nec3 {[%clk 0:02:26.6]}
18... Qg6 {[%clk 0:01:58.1]} 19. Ne7+ {[%clk 0:02:25.7]} 1-0

[Event "Late-Titled-Tuesday-Blitz-June-25-2024"]
[Site "Chess.com"]
[Date "2024.06.25"]
[Round "1"]
[White "Gzucaritas"]
[Black "AGW2016"]
[Result "0-1"]
[WhiteElo "2003"]
[BlackElo "2543"]
[TimeControl "180+1"]
[EndTime "14:02:45 PDT"]
[Termination "AGW2016 won by resignation"]

1. e4 {[%clk 0:02:56.9]} 1... e5 {[%clk 0:02:29.8]} 2. Nf3 {[%clk 0:02:56.4]}
2... Nc6 {[%clk 0:02:29.4]} 3. d4 {[%clk 0:02:56.4]} 3... exd4 {[%clk
0:02:29.7]} 4. Nxd4 {[%clk 0:02:56.2]} 4... Nf6 {[%clk 0:02:29.4]} 5. Nxc6
{[%clk 0:02:56.2]} 5... bxc6 {[%clk 0:02:30.3]} 6. e5 {[%clk 0:02:56.3]} 6...
Nd5 {[%clk 0:02:30.6]} 7. c4 {[%clk 0:02:56.4]} 7... Nb6 {[%clk 0:02:30.5]} 8.
Nc3 {[%clk 0:02:55.2]} 8... Bb4 {[%clk 0:02:29.7]} 9. Bd2 {[%clk 0:02:55.1]}
9... O-O {[%clk 0:02:29.8]} 10. Bd3 {[%clk 0:02:48.7]} 10... Re8 {[%clk
0:02:30.3]} 11. O-O {[%clk 0:02:35.6]} 11... Rxe5 {[%clk 0:02:29.6]} 12. a3
{[%clk 0:02:35.3]} 12... Bf8 {[%clk 0:02:29.4]} 13. Ne4 {[%clk 0:02:26.4]} 13...
h6 {[%clk 0:02:25.3]} 14. Bc3 {[%clk 0:02:25.8]} 14... Re8 {[%clk 0:02:23.1]}
15. Qg4 {[%clk 0:02:11.5]} 15... d5 {[%clk 0:02:22]} 16. Nf6+ {[%clk 0:01:57]}
16... Qxf6 {[%clk 0:02:20.9]} 17. Qg3 {[%clk 0:01:55]} 17... d4 {[%clk
0:02:18.8]} 18. Bd2 {[%clk 0:01:52.8]} 18... Bd6 {[%clk 0:02:17.2]} 19. Qh3
{[%clk 0:01:52.5]} 19... Bxh3 {[%clk 0:02:16.2]} 20. gxh3 {[%clk 0:01:53.4]}
20... Qf3 {[%clk 0:02:14.1]} 0-1

[Event "Late-Titled-Tuesday-Blitz-June-25-2024"]
[Site "Chess.com"]
[Date "2024.06.25"]
[Round "1"]
[White "Perecke"]
[Black "GM_dmitrij"]
[Result "0-1"]
[WhiteElo "2509"]
[BlackElo "2990"]
[TimeControl "180+1"]
[EndTime "14:03:17 PDT"]
[Termination "GM_dmitrij won by resignation"]

1. d4 {[%clk 0:03:00.9]} 1... Nf6 {[%clk 0:02:59.1]} 2. c4 {[%clk 0:02:54.3]}
2... e6 {[%clk 0:02:59.1]} 3. Nf3 {[%clk 0:02:49.7]} 3... d5 {[%clk 0:02:59]} 4.
Nc3 {[%clk 0:02:46.7]} 4... Nbd7 {[%clk 0:02:56.5]} 5. Bg5 {[%clk 0:02:45.1]}
5... h6 {[%clk 0:02:54.7]} 6. Bh4 {[%clk 0:02:44.6]} 6... Be7 {[%clk 0:02:55.2]}
7. e3 {[%clk 0:02:41.2]} 7... O-O {[%clk 0:02:52.4]} 8. c5 {[%clk 0:02:41.4]}
8... Ne4 {[%clk 0:02:38.3]} 9. Bxe7 {[%clk 0:02:37.1]} 9... Qxe7 {[%clk
0:02:39.2]} 10. Nxe4 {[%clk 0:02:25]} 10... dxe4 {[%clk 0:02:38.4]} 11. Nd2
{[%clk 0:02:24.2]} 11... Nf6 {[%clk 0:02:28.5]} 12. Qc2 {[%clk 0:02:22.4]} 12...
e5 {[%clk 0:02:27.8]} 13. dxe5 {[%clk 0:02:15.1]} 13... Qxe5 {[%clk 0:02:28.7]}
14. Be2 {[%clk 0:02:11.7]} 14... Be6 {[%clk 0:02:24.6]} 15. h3 {[%clk
0:02:09.4]} 15... Rfd8 {[%clk 0:02:17]} 16. O-O {[%clk 0:02:08.3]} 16... Rd5
{[%clk 0:02:11.1]} 17. b4 {[%clk 0:02:06.8]} 17... Rad8 {[%clk 0:02:05.7]} 18.
Rfd1 {[%clk 0:02:01.9]} 18... Rxd2 {[%clk 0:02:05]} 19. Rxd2 {[%clk 0:01:54.2]}
19... Qxa1+ {[%clk 0:02:02.9]} 20. Kh2 {[%clk 0:01:53]} 20... Qe5+ {[%clk
0:01:57.9]} 21. g3 {[%clk 0:01:51.5]} 21... Rxd2 {[%clk 0:01:55.8]} 22. Qxd2
{[%clk 0:01:52.4]} 22... Qd5 {[%clk 0:01:53.3]} 23. Qc2 {[%clk 0:01:51.4]} 23...
Qxa2 {[%clk 0:01:53.2]} 0-1

[Event "Late-Titled-Tuesday-Blitz-June-25-2024"]
[Site "Chess.com"]
[Date "2024.06.25"]
[Round "1"]
[White "mostafa_sakha"]
[Black "Hamisandwich"]
[Result "0-1"]
[WhiteElo "2446"]
[BlackElo "2756"]
[TimeControl "180+1"]
[EndTime "14:03:28 PDT"]
[Termination "Hamisandwich won by resignation"]

1. d4 {[%clk 0:02:59.6]} 1... d5 {[%clk 0:02:58.2]} 2. c4 {[%clk 0:02:59.4]}
2... dxc4 {[%clk 0:02:55.3]} 3. e3 {[%clk 0:02:59.2]} 3... e6 {[%clk 0:02:51.9]}
4. Bxc4 {[%clk 0:02:59.1]} 4... Nf6 {[%clk 0:02:52.4]} 5. Nf3 {[%clk 0:02:58.9]}
5... a6 {[%clk 0:02:52.9]} 6. O-O {[%clk 0:02:58.7]} 6... b5 {[%clk 0:02:52.6]}
7. Bb3 {[%clk 0:02:57.5]} 7... Bb7 {[%clk 0:02:50.2]} 8. a4 {[%clk 0:02:56.5]}
8... b4 {[%clk 0:02:48.4]} 9. Nbd2 {[%clk 0:02:54.3]} 9... Nbd7 {[%clk
0:02:43.7]} 10. Nc4 {[%clk 0:02:53.3]} 10... c5 {[%clk 0:02:43.7]} 11. dxc5
{[%clk 0:02:42.5]} 11... Nxc5 {[%clk 0:02:44.6]} 12. Qxd8+ {[%clk 0:02:37]}
12... Rxd8 {[%clk 0:02:45.5]} 13. Na5 {[%clk 0:02:30.1]} 13... Nxb3 {[%clk
0:02:45.2]} 14. Nxb3 {[%clk 0:02:29.8]} 14... Bd5 {[%clk 0:02:45.8]} 15. Nbd4
{[%clk 0:02:20.2]} 15... Ne4 {[%clk 0:02:40.7]} 16. Nd2 {[%clk 0:02:17.4]} 16...
Nc5 {[%clk 0:02:36.4]} 17. N2f3 {[%clk 0:01:52]} 17... f6 {[%clk 0:02:27.4]} 18.
Bd2 {[%clk 0:01:47.4]} 18... e5 {[%clk 0:02:27.6]} 19. Bxb4 {[%clk 0:01:33.5]}
19... exd4 {[%clk 0:02:24.7]} 20. exd4 {[%clk 0:01:33]} 20... Nd3 {[%clk
0:02:22.1]} 21. Bc3 {[%clk 0:01:30.5]} 21... Bxf3 {[%clk 0:02:19.2]} 22. gxf3
{[%clk 0:01:30]} 22... Bd6 {[%clk 0:02:18.5]} 23. Rfd1 {[%clk 0:01:29.4]} 23...
Nf4 {[%clk 0:02:18.6]} 24. b4 {[%clk 0:01:25.9]} 24... Ne2+ {[%clk 0:02:14.6]}
0-1

[Event "Late-Titled-Tuesday-Blitz-June-25-2024"]
[Site "Chess.com"]
[Date "2024.06.25"]
[Round "1"]
[White "ahmedkandiliii"]
[Black "XDPS"]
[Result "0-1"]
[WhiteElo "2472"]
[BlackElo "2831"]
[TimeControl "180+1"]
[EndTime "14:04:04 PDT"]
[Termination "XDPS won by resignation"]

1. e4 {[%clk 0:02:55]} 1... c5 {[%clk 0:02:55.3]} 2. Nc3 {[%clk 0:02:50.4]} 2...
e6 {[%clk 0:02:53.7]} 3. Nf3 {[%clk 0:02:48.9]} 3... a6 {[%clk 0:02:53.3]} 4. d4
{[%clk 0:02:47.5]} 4... cxd4 {[%clk 0:02:49.7]} 5. Nxd4 {[%clk 0:02:48.4]} 5...
Qc7 {[%clk 0:02:50.2]} 6. g3 {[%clk 0:02:47.7]} 6... b5 {[%clk 0:02:50]} 7. Bg2
{[%clk 0:02:47.3]} 7... Bb7 {[%clk 0:02:50.7]} 8. a3 {[%clk 0:02:45.1]} 8... d6
{[%clk 0:02:51]} 9. O-O {[%clk 0:02:43.9]} 9... Nf6 {[%clk 0:02:51.6]} 10. Be3
{[%clk 0:02:40.8]} 10... Nbd7 {[%clk 0:02:52.1]} 11. h3 {[%clk 0:02:38.4]} 11...
Be7 {[%clk 0:02:52.6]} 12. Kh2 {[%clk 0:02:38.6]} 12... O-O {[%clk 0:02:53.1]}
13. f4 {[%clk 0:02:38.8]} 13... Nc5 {[%clk 0:02:52.4]} 14. e5 {[%clk 0:01:58.5]}
14... dxe5 {[%clk 0:02:52.3]} 15. fxe5 {[%clk 0:01:59.4]} 15... Nfd7 {[%clk
0:02:39.5]} 16. Bf4 {[%clk 0:01:24.5]} 16... Bxg2 {[%clk 0:02:39]} 17. Kxg2
{[%clk 0:01:25.2]} 17... Rad8 {[%clk 0:02:36.4]} 18. Qe2 {[%clk 0:01:22.8]}
18... Nb6 {[%clk 0:02:33.5]} 19. Kh2 {[%clk 0:01:11.6]} 19... Rxd4 {[%clk
0:02:32.8]} 20. Be3 {[%clk 0:01:00.9]} 20... Rd7 {[%clk 0:02:32.4]} 21. Rad1
{[%clk 0:01:00.1]} 21... Rxd1 {[%clk 0:02:31.9]} 22. Rxd1 {[%clk 0:01:00.3]}
22... Nc4 {[%clk 0:02:32.2]} 23. Bg1 {[%clk 0:00:58.4]} 23... Nxb2 {[%clk
0:02:28.2]} 24. Rd4 {[%clk 0:00:57.6]} 24... Nca4 {[%clk 0:02:27.2]} 25. Ne4
{[%clk 0:00:54.7]} 25... Nc3 {[%clk 0:02:27.4]} 26. Qh5 {[%clk 0:00:47.1]} 26...
Nxe4 {[%clk 0:02:25.5]} 27. Rxe4 {[%clk 0:00:48]} 27... g6 {[%clk 0:02:25.7]}
28. Re2 {[%clk 0:00:48.9]} 28... gxh5 {[%clk 0:02:25.5]} 0-1

[Event "Late-Titled-Tuesday-Blitz-June-25-2024"]
[Site "Chess.com"]
[Date "2024.06.25"]
[Round "1"]
[White "SebbyMeister"]
[Black "SaqoChess_Twitch"]
[Result "0-1"]
[WhiteElo "2234"]
[BlackElo "2592"]
[TimeControl "180+1"]
[EndTime "14:04:04 PDT"]
[Termination "SaqoChess_Twitch won by resignation"]

1. e4 {[%clk 0:02:57.8]} 1... c5 {[%clk 0:02:59.9]} 2. Nf3 {[%clk 0:02:58.1]}
2... d6 {[%clk 0:03:00.3]} 3. d4 {[%clk 0:02:57.3]} 3... cxd4 {[%clk 0:03:00.9]}
4. Nxd4 {[%clk 0:02:57.8]} 4... Nf6 {[%clk 0:03:00.8]} 5. Nc3 {[%clk 0:02:58.4]}
5... g6 {[%clk 0:03:00.9]} 6. f3 {[%clk 0:02:57.7]} 6... Bg7 {[%clk 0:03:00.8]}
7. Be3 {[%clk 0:02:58.1]} 7... O-O {[%clk 0:03:00.7]} 8. Qd2 {[%clk 0:02:58.7]}
8... Nc6 {[%clk 0:03:01.1]} 9. Bc4 {[%clk 0:02:58.6]} 9... Bd7 {[%clk
0:03:00.8]} 10. O-O-O {[%clk 0:02:56.9]} 10... Rc8 {[%clk 0:03:01.4]} 11. Bb3
{[%clk 0:02:56]} 11... Nxd4 {[%clk 0:03:01.8]} 12. Bxd4 {[%clk 0:02:55.9]} 12...
b5 {[%clk 0:03:02.4]} 13. Nd5 {[%clk 0:02:53.5]} 13... Nxd5 {[%clk 0:03:01.4]}
14. Bxg7 {[%clk 0:02:53.9]} 14... Kxg7 {[%clk 0:03:01.5]} 15. exd5 {[%clk
0:02:54.5]} 15... a5 {[%clk 0:03:01.1]} 16. a3 {[%clk 0:02:54.1]} 16... b4
{[%clk 0:03:00.7]} 17. a4 {[%clk 0:02:49.7]} 17... Qe8 {[%clk 0:02:59.5]} 18.
Kb1 {[%clk 0:02:05.4]} 18... Bxa4 {[%clk 0:02:59.3]} 19. Bxa4 {[%clk 0:02:05]}
19... Qxa4 {[%clk 0:02:59.4]} 20. b3 {[%clk 0:01:45.4]} 20... Qb5 {[%clk
0:02:56.4]} 21. h4 {[%clk 0:01:45.3]} 21... h5 {[%clk 0:02:47.3]} 22. g4 {[%clk
0:01:44.9]} 22... a4 {[%clk 0:02:42.2]} 23. gxh5 {[%clk 0:01:32.8]} 23... axb3
{[%clk 0:02:42.2]} 24. cxb3 {[%clk 0:01:23.8]} 24... Rc3 {[%clk 0:02:42.3]} 25.
Qb2 {[%clk 0:01:15]} 25... Ra8 {[%clk 0:02:33.2]} 26. Rc1 {[%clk 0:01:09.2]}
26... Qd3+ {[%clk 0:02:32.3]} 27. Rc2 {[%clk 0:01:04.6]} 27... Ra3 {[%clk
0:02:32.3]} 0-1

[Event "Late-Titled-Tuesday-Blitz-June-25-2024"]
[Site "Chess.com"]
[Date "2024.06.25"]
[Round "1"]
[White "Bob_2004"]
[Black "chess_cryptoworld"]
[Result "0-1"]
[WhiteElo "2737"]
[BlackElo "2460"]
[TimeControl "180+1"]
[EndTime "14:04:21 PDT"]
[Termination "chess_cryptoworld won by resignation"]

1. e4 {[%clk 0:03:00.9]} 1... e5 {[%clk 0:02:59.2]} 2. Nf3 {[%clk 0:03:00.7]}
2... Nc6 {[%clk 0:02:59.1]} 3. d4 {[%clk 0:03:01.3]} 3... exd4 {[%clk
0:02:59.1]} 4. Nxd4 {[%clk 0:03:02.2]} 4... Qf6 {[%clk 0:02:57.1]} 5. Be3 {[%clk
0:02:59.6]} 5... Bc5 {[%clk 0:02:56.3]} 6. c3 {[%clk 0:02:59.7]} 6... Nge7
{[%clk 0:02:53.3]} 7. Bc4 {[%clk 0:02:59.5]} 7... b6 {[%clk 0:02:53.9]} 8. O-O
{[%clk 0:02:57.7]} 8... O-O {[%clk 0:02:51.1]} 9. Nd2 {[%clk 0:02:54.6]} 9...
Nxd4 {[%clk 0:02:46.8]} 10. cxd4 {[%clk 0:02:52.2]} 10... Bxd4 {[%clk
0:02:44.5]} 11. Qe1 {[%clk 0:02:52.3]} 11... Bxe3 {[%clk 0:02:41.7]} 12. Qxe3
{[%clk 0:02:53.2]} 12... Nc6 {[%clk 0:02:41.7]} 13. f4 {[%clk 0:02:50]} 13...
Qd4 {[%clk 0:02:36]} 14. Rfe1 {[%clk 0:02:50.2]} 14... Bb7 {[%clk 0:02:34.1]}
15. Nf3 {[%clk 0:02:48.7]} 15... Qxe3+ {[%clk 0:02:33.7]} 16. Rxe3 {[%clk
0:02:48.3]} 16... Rfe8 {[%clk 0:02:33.6]} 17. Ng5 {[%clk 0:02:44.7]} 17... Nd8
{[%clk 0:02:29.1]} 18. e5 {[%clk 0:02:43.6]} 18... h6 {[%clk 0:02:25.9]} 19. Nf3
{[%clk 0:02:41.6]} 19... Nc6 {[%clk 0:02:16.3]} 20. Rd1 {[%clk 0:02:34]} 20...
Rad8 {[%clk 0:02:10.5]} 21. Kf2 {[%clk 0:02:31.5]} 21... Kf8 {[%clk 0:02:07.8]}
22. a3 {[%clk 0:02:30.6]} 22... d6 {[%clk 0:02:07]} 23. exd6 {[%clk 0:02:24.7]}
23... Rxd6 {[%clk 0:02:05.4]} 24. Rxd6 {[%clk 0:02:21.8]} 24... cxd6 {[%clk
0:02:04.2]} 25. Rd3 {[%clk 0:02:21.3]} 25... Rd8 {[%clk 0:02:01.4]} 26. Bd5
{[%clk 0:02:20.8]} 26... Na5 {[%clk 0:01:58]} 27. Ba2 {[%clk 0:02:19.9]} 27...
Ba6 {[%clk 0:01:46.6]} 28. Rd1 {[%clk 0:02:15]} 28... Bc4 {[%clk 0:01:43.6]} 29.
Bb1 {[%clk 0:02:14.8]} 29... Nb3 {[%clk 0:01:34.9]} 30. h3 {[%clk 0:02:08.1]}
30... Nc5 {[%clk 0:01:30.1]} 31. Ne5 {[%clk 0:02:06.3]} 31... Bb3 {[%clk
0:01:11.4]} 32. Rd2 {[%clk 0:02:05.7]} 32... Ne6 {[%clk 0:01:00.2]} 33. g3
{[%clk 0:02:03.7]} 33... dxe5 {[%clk 0:00:59.3]} 0-1

[Event "Late-Titled-Tuesday-Blitz-June-25-2024"]
[Site "Chess.com"]
[Date "2024.06.25"]
[Round "1"]
[White "Viktoker"]
[Black "Alexander_Khlebovich"]
[Result "0-1"]
[WhiteElo "2470"]
[BlackElo "2829"]
[TimeControl "180+1"]
[EndTime "14:04:37 PDT"]
[Termination "Alexander_Khlebovich won by resignation"]

1. d4 {[%clk 0:02:59.8]} 1... Nf6 {[%clk 0:02:59.5]} 2. Nf3 {[%clk 0:02:59.9]}
2... g6 {[%clk 0:02:59.9]} 3. Nc3 {[%clk 0:02:59.7]} 3... d5 {[%clk 0:02:59.1]}
4. Bf4 {[%clk 0:02:59.7]} 4... Bg7 {[%clk 0:02:56.5]} 5. Nb5 {[%clk 0:02:59.8]}
5... Na6 {[%clk 0:02:55.8]} 6. e3 {[%clk 0:03:00.4]} 6... c6 {[%clk 0:02:53.1]}
7. Nc3 {[%clk 0:03:00.2]} 7... Nc7 {[%clk 0:02:52.1]} 8. h3 {[%clk 0:03:00]}
8... O-O {[%clk 0:02:52]} 9. Bd3 {[%clk 0:02:58.1]} 9... Nce8 {[%clk 0:02:52.1]}
10. O-O {[%clk 0:02:56.9]} 10... Nd6 {[%clk 0:02:52.2]} 11. a4 {[%clk
0:02:56.5]} 11... Nfe4 {[%clk 0:02:52]} 12. a5 {[%clk 0:02:51.2]} 12... Bf5
{[%clk 0:02:39.6]} 13. Na4 {[%clk 0:02:49.6]} 13... Qxa5 {[%clk 0:02:33.9]} 14.
Nc5 {[%clk 0:02:47.7]} 14... Qb6 {[%clk 0:02:19.6]} 15. Ne5 {[%clk 0:02:47.9]}
15... Nxc5 {[%clk 0:02:14.3]} 16. dxc5 {[%clk 0:02:48.8]} 16... Qxc5 {[%clk
0:02:13.9]} 17. Bxf5 {[%clk 0:02:46.4]} 17... Bxe5 {[%clk 0:02:13.3]} 18. Bxe5
{[%clk 0:02:43.7]} 18... Nxf5 {[%clk 0:02:12.9]} 19. Qg4 {[%clk 0:02:32.8]}
19... f6 {[%clk 0:02:07.7]} 20. Bc3 {[%clk 0:02:32.4]} 20... Qc4 {[%clk
0:01:57.2]} 21. Qf3 {[%clk 0:02:28.4]} 21... Qe4 {[%clk 0:01:55.8]} 22. Qe2
{[%clk 0:02:28]} 22... d4 {[%clk 0:01:42.8]} 23. Bd2 {[%clk 0:02:27.6]} 23...
dxe3 {[%clk 0:01:40.1]} 24. fxe3 {[%clk 0:02:27]} 24... Ng3 {[%clk 0:01:34.3]}
25. Qf2 {[%clk 0:02:24]} 25... Nxf1 {[%clk 0:01:33.6]} 26. Rxf1 {[%clk
0:02:24.9]} 26... Rad8 {[%clk 0:01:32.4]} 27. Bc3 {[%clk 0:02:24.8]} 27... Rd5
{[%clk 0:01:31.5]} 28. Qg3 {[%clk 0:02:24.8]} 28... Rfd8 {[%clk 0:01:27.3]} 29.
Rf4 {[%clk 0:02:23.1]} 29... Qxc2 {[%clk 0:01:22.5]} 30. Kh2 {[%clk 0:02:21]}
30... Qb1 {[%clk 0:01:17.5]} 31. Qf2 {[%clk 0:02:16.4]} 31... Rf5 {[%clk
0:01:12.9]} 32. e4 {[%clk 0:02:13.7]} 32... Qxe4 {[%clk 0:01:10.2]} 33. Rxe4
{[%clk 0:02:13]} 33... Rxf2 {[%clk 0:01:10.2]} 34. Rxe7 {[%clk 0:02:13.9]} 34...
b5 {[%clk 0:01:04.9]} 35. Rxa7 {[%clk 0:02:13.6]} 35... c5 {[%clk 0:01:05.1]}
36. Kg3 {[%clk 0:02:13.1]} 36... Rf5 {[%clk 0:01:03.8]} 37. Kh4 {[%clk
0:02:08.7]} 37... b4 {[%clk 0:01:03.3]} 38. g4 {[%clk 0:02:08.8]} 38... bxc3
{[%clk 0:01:02.2]} 39. gxf5 {[%clk 0:02:08.7]} 39... c2 {[%clk 0:01:01.1]} 0-1

[Event "Late-Titled-Tuesday-Blitz-June-25-2024"]
[Site "Chess.com"]
[Date "2024.06.25"]
[Round "1"]
[White "Pitomina"]
[Black "HansOnTwitch"]
[Result "0-1"]
[WhiteElo "2523"]
[BlackElo "3116"]
[TimeControl "180+1"]
[EndTime "14:04:44 PDT"]
[Termination "HansOnTwitch won by resignation"]

1. e4 {[%clk 0:03:00.9]} 1... c6 {[%clk 0:02:46.1]} 2. d3 {[%clk 0:02:58.8]}
2... d5 {[%clk 0:02:40.6]} 3. Nf3 {[%clk 0:02:58.1]} 3... g6 {[%clk 0:02:38.1]}
4. g3 {[%clk 0:02:54]} 4... Bg7 {[%clk 0:02:35.2]} 5. Nbd2 {[%clk 0:02:53.7]}
5... e5 {[%clk 0:02:34.9]} 6. Bg2 {[%clk 0:02:52.6]} 6... Ne7 {[%clk 0:02:34.6]}
7. O-O {[%clk 0:02:52.2]} 7... O-O {[%clk 0:02:34.7]} 8. Re1 {[%clk 0:02:48.1]}
8... Nd7 {[%clk 0:02:34.8]} 9. a4 {[%clk 0:02:34.1]} 9... a5 {[%clk 0:02:34.7]}
10. Nb3 {[%clk 0:02:32.2]} 10... h6 {[%clk 0:02:29.3]} 11. Bd2 {[%clk
0:02:21.8]} 11... b6 {[%clk 0:02:29.1]} 12. exd5 {[%clk 0:02:18]} 12... cxd5
{[%clk 0:02:28.1]} 13. Bc3 {[%clk 0:02:17.8]} 13... Nc6 {[%clk 0:02:24.9]} 14.
Nh4 {[%clk 0:01:47.5]} 14... Nc5 {[%clk 0:02:19.1]} 15. Nxc5 {[%clk 0:01:32.8]}
15... bxc5 {[%clk 0:02:20]} 16. Bd2 {[%clk 0:01:31.1]} 16... Be6 {[%clk
0:02:17.2]} 17. Rb1 {[%clk 0:01:30]} 17... Qd7 {[%clk 0:02:16.7]} 18. b3 {[%clk
0:01:24.3]} 18... g5 {[%clk 0:02:16.1]} 19. Nf3 {[%clk 0:01:23.7]} 19... f5
{[%clk 0:02:16.7]} 20. h3 {[%clk 0:01:20.6]} 20... e4 {[%clk 0:02:16]} 21. Nh2
{[%clk 0:01:19.1]} 21... Ne5 {[%clk 0:02:14.4]} 22. dxe4 {[%clk 0:00:58]} 22...
fxe4 {[%clk 0:02:15.3]} 23. Qh5 {[%clk 0:00:57.3]} 23... Rf5 {[%clk 0:01:44.9]}
24. Ng4 {[%clk 0:00:53.3]} 24... Nxg4 {[%clk 0:01:44.7]} 25. hxg4 {[%clk
0:00:52.9]} 25... Rf7 {[%clk 0:01:40.7]} 26. Bh3 {[%clk 0:00:52.7]} 26... Raf8
{[%clk 0:01:40.2]} 27. Re2 {[%clk 0:00:49.8]} 27... Rxf2 {[%clk 0:01:39.1]} 28.
Rxf2 {[%clk 0:00:49.4]} 28... Rxf2 {[%clk 0:01:40]} 29. Kxf2 {[%clk 0:00:49.5]}
29... Bf7 {[%clk 0:01:40.2]} 0-1